bitfinex/quotes_SOLUSD_20251226
["timestamp","ask_amount","ask_price","bid_price","bid_amount"]
[1766729882458,0.69,123.66,123.62,0.69]
[1766729882658,0.69,123.66,123.62,2.85988866]
[1766729883555,0.69,123.66,123.62,10.94876993]
[1766729885774,2.85988866,123.66,123.62,10.94876993]
[1766729886621,2.85988866,123.66,123.63,0.69]
[1766729887181,0.69,123.66,123.63,0.69]
[1766729887781,2.16988866,123.67,123.63,0.69]
[1766729888387,2.85988866,123.67,123.63,0.69]
[1766729889278,0.69,123.66,123.63,0.69]
[1766729890378,10.43767296,123.69,123.63,10.25851773]
[1766729890578,0.69,123.68,123.65,0.69]
[1766729892900,2.85988866,123.68,123.65,0.69]
[1766729895191,8.08407437,123.7,123.65,0.69]
[1766729895505,2.84988866,123.69,123.65,0.69]
[1766729895676,2.84988866,123.68,123.65,0.69]
[1766729897309,0.68,123.68,123.65,0.69]
[1766729897511,2.84988866,123.68,123.65,0.69]
[1766729898983,0.68,123.68,123.65,0.69]
[1766729899182,2.84988866,123.68,123.65,0.69]
[1766729902093,0.68,123.67,123.64,0.69]
[1766729902796,2.84988866,123.67,123.64,0.69]
[1766729905009,0.68,123.67,123.64,0.69]
[1766729906211,0.68,123.66,123.62,32.37988866]
[1766729906419,2.84988866,123.66,123.62,14.76]
[1766729906598,2.84988866,123.66,123.63,0.69]
[1766729907819,117.30756162,123.72,123.63,0.69]
[1766729907820,0.68,123.7,123.63,0.69]
[1766729908011,15.44,123.72,123.68,0.69]
[1766729908217,0.68,123.72,123.69,0.69]
[1766729908922,0.68,123.72,123.69,2.85988866]
[1766729909139,49.55221508,123.75,123.69,2.85988866]
[1766729909140,10.25140327,123.74,123.7,0.69]
[1766729909296,10.93140327,123.74,123.7,0.69]
[1766729909491,10.93140327,123.74,123.7,2.85988866]
[1766729910717,10.93140327,123.74,123.7,0.69]
[1766729910918,8.76217377,123.73,123.7,0.69]
[1766729911900,10.93206243,123.73,123.69,0.69]
[1766729912118,0.68,123.72,123.69,0.69]
[1766729917626,0.68,123.72,123.69,2.85988866]
[1766729918527,8.08217377,123.73,123.67,32.3469602]
[1766729918821,0.68,123.71,123.68,2.85988866]
[1766729919018,0.68,123.71,123.68,10.94525183]
[1766729921524,0.68,123.71,123.68,2.85988866]
[1766729922427,0.68,123.71,123.68,10.9451886]
[1766729923130,0.68,123.71,123.68,8.77529994]
[1766729923328,0.68,123.71,123.68,10.9451886]
[1766729926215,0.68,123.71,123.68,0.69]
[1766729926414,0.68,123.71,123.68,2.85988866]
[1766729926625,2.16988866,123.7,123.66,19.21984673]
[1766729926822,0.71,123.69,123.66,17.62988866]
[1766729927136,0.71,123.69,123.66,2.86988866]
[1766729928825,0.71,123.69,123.66,0.67]
[1766729929012,0.71,123.69,123.66,2.83988866]
[1766729929720,0.72,123.7,123.68,2.16988866]
[1766729930051,0.72,123.71,123.68,4.06117401]
[1766729932037,4.11117401,123.71,123.68,0.67]
[1766729932847,0.72,123.7,123.67,18.82117401]
[1766729933006,0.72,123.7,123.67,15.43]
[1766729933210,4.11117401,123.7,123.67,0.67]
[1766729936129,0.72,123.7,123.67,0.67]
[1766729937740,0.72,123.7,123.67,4.06117401]
[1766729938033,0.72,123.7,123.67,0.67]
[1766729938336,0.72,123.7,123.67,4.06117401]
[1766729942638,12.19462497,123.71,123.68,0.67]
[1766729943040,0.72,123.7,123.68,0.67]
[1766729943417,8.80345096,123.71,123.68,0.67]
[1766729944331,8.08345096,123.71,123.68,0.67]
[1766729944647,0.72,123.73,123.67,8.0855896]
[1766729944851,0.72,123.72,123.68,18.82117401]
[1766729945019,0.72,123.72,123.68,18.15117401]
[1766729945225,0.72,123.72,123.69,3.39117401]
[1766729946321,0.72,123.72,123.68,26.23649781]
[1766729946517,0.72,123.72,123.69,0.67]
[1766729951257,0.72,123.72,123.69,4.06117401]
[1766729952535,0.72,123.72,123.69,3.39117401]
[1766729952732,0.72,123.72,123.69,4.06117401]
[1766729953657,0.72,123.72,123.7,0.67]
[1766729954930,0.72,123.72,123.68,23.5251035]
[1766729955130,0.72,123.72,123.68,26.23627751]
[1766729955329,12.19263513,123.74,123.7,0.68]
[1766729955755,0.72,123.73,123.7,0.68]
[1766729958741,4.87176163,123.75,123.72,4.07117401]
[1766729959433,4.87176163,123.75,123.72,26.23391525]
[1766729959660,4.15176163,123.75,123.73,0.68]
[1766729959953,4.87176163,123.75,123.73,0.68]
[1766729960152,4.87176163,123.75,123.72,18.83117401]
[1766729960540,4.15176163,123.75,123.73,0.68]
[1766729960747,4.87176163,123.75,123.73,4.07117401]
[1766729961256,4.15176163,123.75,123.73,4.07117401]
[1766729961834,4.87176163,123.75,123.73,4.07117401]
[1766729962361,4.15176163,123.75,123.73,4.07117401]
[1766729968363,4.15176163,123.75,123.73,0.68]
[1766729971239,16.34381828,123.75,123.72,0.68]
[1766729971963,15.62381828,123.75,123.72,3.39117401]
[1766729972143,12.95264427,123.75,123.72,4.07117401]
[1766729973139,12.95264427,123.75,123.72,0.68]
[1766729973340,12.95264427,123.75,123.72,4.07117401]
[1766729978461,12.95264427,123.75,123.72,0.68]
[1766729978654,12.95264427,123.75,123.72,4.07117401]
[1766729979351,12.95264427,123.75,123.72,0.68]
[1766729979552,4.87176163,123.75,123.72,0.68]
[1766729979768,4.87176163,123.75,123.72,4.07117401]
[1766729982166,4.87176163,123.75,123.73,3.39117401]
[1766729982372,4.87176163,123.75,123.73,4.07117401]
[1766729982546,4.15176163,123.75,123.73,4.07117401]
[1766729982745,4.15176163,123.75,123.74,3.39117401]
[1766729982968,4.15176163,123.75,123.74,4.07117401]
[1766729983771,4.15176163,123.75,123.74,3.39117401]
[1766729984221,4.15176163,123.75,123.74,4.05117401]
[1766729985063,12.23256971,123.75,123.74,4.05117401]
[1766729985261,12.23256971,123.75,123.74,0.66]
[1766729987070,12.23256971,123.75,123.74,1e-08]
[1766729987267,12.23256971,123.75,123.73,3.39117401]
[1766729989063,12.23256971,123.75,123.73,4.08117401]
[1766729989666,12.23256971,123.75,123.73,0.69]
[1766729989865,12.23256971,123.75,123.73,4.08117401]
[1766729991989,12.23256971,123.75,123.73,2.85886436]
[1766729992287,4.15176163,123.75,123.73,2.85886436]
[1766729992779,3.46176163,123.75,123.74,2.16886436]
[1766729992954,3.46176163,123.75,123.74,16.92886436]
[1766729993660,3.46176163,123.75,123.74,14.76]
[1766729993868,3.46176163,123.75,123.74,16.92886436]
[1766729998477,8.08018205,123.76,123.74,16.92886436]
[1766729998970,8.77018205,123.76,123.74,16.92886436]
[1766729999383,0.69,123.75,123.73,10.43767296]
[1766729999686,0.69,123.75,123.73,12.60653732]
[1766730000687,0.69,123.75,123.74,2.16886436]
[1766730000887,0.69,123.76,123.74,2.16886436]
[1766730001384,0.69,123.76,123.73,10.43767296]
[1766730001385,0.69,123.76,123.75,2.16886436]
[1766730001566,4.72612296,123.77,123.75,2.16886436]
[1766730002085,4.03612296,123.77,123.75,2.16886436]
[1766730002281,0.69,123.76,123.73,10.43767296]
[1766730002781,0.69,123.76,123.73,2.16886436]
[1766730002972,0.69,123.76,123.72,14.76]
[1766730003173,0.69,123.76,123.73,2.16886436]
[1766730003372,8.77070391,123.76,123.73,2.16886436]
[1766730005484,28.28109175,123.76,123.72,12.60653732]
[1766730005690,0.69,123.72,123.67,2.16886436]
[1766730005872,2.16886436,123.69,123.6,4.41460722]
[1766730006189,0.69,123.67,123.64,2.16886436]
[1766730006488,0.69,123.67,123.63,12.60653732]
[1766730008083,10.94447829,123.68,123.64,2.16886436]
[1766730008690,10.94447829,123.68,123.63,12.60653732]
[1766730011770,0.69,123.67,123.63,12.60653732]
[1766730012170,0.69,123.71,123.66,12.60653732]
[1766730012395,0.69,123.71,123.67,2.16886436]
[1766730012695,0.69,123.7,123.64,10.43767296]
[1766730012997,0.69,123.68,123.66,2.16886436]
[1766730013585,15.45,123.7,123.67,2.16886436]
[1766730013783,15.45,123.7,123.68,2.16886436]
[1766730015474,0.69,123.7,123.68,2.16886436]
[1766730022508,22.84295641,123.72,123.68,2.16886436]
[1766730022690,22.84295641,123.72,123.69,2.16886436]
[1766730022896,0.7,123.71,123.67,8.08593682]
[1766730023090,0.7,123.71,123.69,2.16886436]
[1766730023283,14.76,123.72,123.69,2.16886436]
[1766730023489,15.46,123.72,123.69,2.16886436]
[1766730023700,15.46,123.72,123.67,8.08593682]
[1766730023701,0.7,123.75,123.71,2.16886436]
[1766730023897,0.7,123.75,123.68,8.08534859]
[1766730023898,0.7,123.74,123.72,2.16886436]
[1766730024102,0.7,123.75,123.72,2.16886436]
[1766730029113,12.11566659,123.77,123.73,2.16886436]
[1766730029319,0.7,123.76,123.73,2.16886436]
[1766730032524,0.7,123.76,123.74,2.16886436]
[1766730032905,0.7,123.76,123.72,8.08248705]
[1766730033117,0.7,123.76,123.74,2.16886436]
[1766730035728,0.7,123.75,123.7,10.43767296]
[1766730035912,0.7,123.75,123.72,2.16886436]
[1766730039837,2.86886436,123.75,123.72,2.16886436]
[1766730040534,2.86886436,123.75,123.71,10.25224644]
[1766730041933,0.7,123.74,123.71,10.25224644]
[1766730042638,0.7,123.74,123.68,20.21277646]
[1766730042817,0.7,123.72,123.69,10.43767296]
[1766730043020,0.7,123.72,123.69,12.60653732]
[1766730043718,0.7,123.71,123.68,2.16886436]
[1766730044937,0.7,123.71,123.68,10.25418833]
[1766730045138,16.92886436,123.73,123.69,2.16886436]
[1766730045522,0.7,123.72,123.69,2.16886436]
[1766730045723,0.7,123.72,123.68,8.08532397]
[1766730045930,0.7,123.72,123.69,2.16886436]
[1766730046221,14.76,123.73,123.7,2.16886436]
[1766730046422,15.46,123.73,123.7,2.16886436]
[1766730047043,0.7,123.72,123.7,2.16886436]
[1766730051443,0.7,123.72,123.68,8.08538163]
[1766730051647,0.7,123.72,123.7,2.16886436]
[1766730051955,0.7,123.72,123.7,3.39041585]
[1766730052343,3.49041585,123.78,123.71,13.82808881]
[1766730052344,0.8,123.78,123.71,13.82808881]
[1766730052552,4.73612296,123.77,123.75,3.39041585]
[1766730053229,12.81564125,123.77,123.74,13.82808881]
[1766730053935,4.73612296,123.77,123.74,13.82808881]
[1766730055258,4.73612296,123.77,123.75,3.39041585]
[1766730056354,3.39041585,123.76,123.68,28.29005027]
[1766730056656,0.7,123.73,123.69,3.39041585]
[1766730056856,0.7,123.71,123.66,8.08613853]
[1766730057030,14.76,123.71,123.68,3.39041585]
[1766730057230,15.46,123.71,123.69,3.39041585]
[1766730057943,14.76,123.71,123.7,3.39041585]
[1766730058352,14.76,123.71,123.69,3.39041585]
[1766730059051,0.7,123.7,123.67,3.39041585]
[1766730059958,0.7,123.7,123.67,13.82808881]
[1766730063155,0.7,123.7,123.67,10.43767296]
[1766730063534,0.7,123.7,123.66,3.39041585]
[1766730063737,0.7,123.69,123.65,21.91530188]
[1766730063965,0.7,123.69,123.65,13.82808881]
[1766730064278,0.7,123.68,123.65,10.43767296]
[1766730064849,0.7,123.67,123.63,11.47881016]
[1766730065054,0.7,123.67,123.63,21.91648312]
[1766730065240,0.7,123.66,123.62,11.4794719]
[1766730065461,0.7,123.66,123.62,21.91714486]
[1766730065761,0.7,123.67,123.63,11.47886131]
[1766730066563,0.7,123.67,123.63,8.08844546]
[1766730066786,0.7,123.67,123.63,11.47886131]
[1766730067481,0.7,123.67,123.64,3.39041585]
[1766730067645,23.54544224,123.68,123.64,3.39041585]
[1766730067965,0.7,123.67,123.63,8.08844546]
[1766730068165,0.7,123.67,123.64,3.39041585]
[1766730070367,0.7,123.67,123.65,3.39041585]
[1766730071064,15.46,123.69,123.65,3.39041585]
[1766730071262,0.7,123.68,123.65,3.39041585]
[1766730074164,20.2046069,123.74,123.66,3.39041585]
[1766730074365,0.72,123.71,123.67,3.39041585]
[1766730074750,0.72,123.71,123.65,10.43767296]
[1766730074955,0.72,123.71,123.67,3.39041585]
[1766730075348,0.72,123.7,123.66,3.39041585]
[1766730075565,4.11041585,123.7,123.66,3.39041585]
[1766730075852,0.72,123.69,123.66,2.67041585]
[1766730077147,0.72,123.69,123.66,8.0866893]
[1766730077466,0.72,123.71,123.67,4.05041585]
[1766730077782,0.72,123.71,123.68,4.05041585]
[1766730078490,0.72,123.71,123.68,0.66]
[1766730078648,0.72,123.71,123.68,4.05041585]
[1766730078849,0.72,123.71,123.68,0.66]
[1766730079069,0.72,123.71,123.68,4.05041585]
[1766730079766,0.72,123.71,123.68,12.13547339]
[1766730085984,0.72,123.71,123.67,11.47630054]
[1766730086161,0.72,123.71,123.67,12.14630054]
[1766730087081,0.72,123.71,123.68,3.39041585]
[1766730087258,0.72,123.71,123.67,8.75588469]
[1766730087583,0.72,123.71,123.68,3.39041585]
[1766730088483,0.72,123.71,123.67,8.75588469]
[1766730088684,0.72,123.71,123.68,3.39041585]
[1766730089859,0.72,123.71,123.68,4.05041585]
[1766730095288,8.08352093,123.71,123.66,8.7566893]
[1766730095493,0.67,123.69,123.66,13.82808881]
[1766730095786,0.67,123.68,123.66,13.82808881]
[1766730096391,0.67,123.68,123.66,3.39041585]
[1766730096889,0.67,123.68,123.65,12.14762276]
[1766730098870,0.67,123.68,123.64,10.43767296]
[1766730098871,0.67,123.67,123.64,18.52564653]
[1766730099074,0.67,123.67,123.64,21.91606238]
[1766730099279,0.67,123.67,123.65,3.39041585]
[1766730100185,0.67,123.67,123.64,22.58606238]
[1766730100391,0.67,123.67,123.64,19.19564653]
[1766730100687,0.67,123.67,123.64,22.58606238]
[1766730103189,0.67,123.67,123.65,3.39041585]
[1766730103703,15.43,123.69,123.66,3.39041585]
[1766730104198,0.68,123.68,123.66,3.39041585]
[1766730106201,14.76,123.69,123.64,18.52550878]
[1766730106202,4.06041585,123.67,123.64,18.52550878]
[1766730106385,0.67,123.67,123.64,21.91592463]
[1766730106771,0.67,123.67,123.64,22.57592463]
[1766730108092,0.67,123.69,123.66,3.39041585]
[1766730108400,0.67,123.69,123.67,3.39041585]
[1766730110491,0.67,123.69,123.66,8.74636881]
[1766730110687,0.67,123.69,123.67,3.39041585]
[1766730111299,0.71,123.68,123.65,3.39041585]
[1766730111467,0.71,123.68,123.65,4.07041585]
[1766730112099,0.71,123.68,123.65,0.68]
[1766730112395,10.25576137,123.7,123.64,18.52522253]
[1766730112396,0.72,123.71,123.67,2.17142091]
[1766730113277,0.72,123.71,123.66,8.74621516]
[1766730113477,2.17142091,123.71,123.66,8.74621516]
[1766730113688,0.72,123.7,123.66,10.91763607]
[1766730113985,0.72,123.7,123.67,0.66]
[1766730114492,0.72,123.66,123.62,24.26497351]
[1766730114689,2.89142091,123.64,123.6,8.29018943]
[1766730114999,0.72,123.64,123.6,11.12161034]
[1766730115167,0.72,123.64,123.6,3.03142091]
[1766730115373,0.72,123.64,123.6,13.46909387]
[1766730116078,2.89142091,123.64,123.6,0.86]
[1766730116479,0.69,123.63,123.6,0.2]
[1766730117112,0.69,123.63,123.6,2.37142091]
[1766730117418,15.45,123.63,123.6,2.37142091]
[1766730119473,15.45,123.63,123.6,0.2]
[1766730119870,15.45,123.64,123.61,2.17142091]
[1766730120102,0.69,123.63,123.61,2.17142091]
[1766730120304,0.69,123.63,123.6,11.15186747]
[1766730121088,2.17142091,123.63,123.6,0.2]
[1766730121297,0.69,123.62,123.6,0.2]
[1766730121524,2.86142091,123.62,123.6,0.2]
[1766730121702,0.69,123.6,123.57,0.2]
[1766730121996,15.45,123.6,123.57,0.2]
[1766730122402,10.2596687,123.64,123.58,10.26329602]
[1766730122603,0.69,123.62,123.59,2.17142091]
[1766730123591,0.69,123.62,123.58,0.69]
[1766730123790,0.69,123.6,123.57,0.2]
[1766730124002,15.45,123.6,123.57,0.2]
[1766730130615,15.45,123.6,123.57,3.09142091]
[1766730131281,15.45,123.6,123.57,0.92]
[1766730131481,15.45,123.6,123.57,3.09142091]
[1766730133615,15.45,123.6,123.57,0.92]
[1766730133905,15.45,123.6,123.57,3.09142091]
[1766730134287,15.45,123.6,123.57,0.92]
[1766730134613,15.45,123.6,123.57,11.1839826]
[1766730135112,0.69,123.62,123.58,2.84142091]
[1766730135317,14.78,123.61,123.58,2.84142091]
[1766730136395,14.78,123.62,123.6,0.67]
[1766730137112,14.78,123.62,123.59,2.17142091]
[1766730137294,14.78,123.62,123.59,2.84142091]
[1766730137495,14.78,123.62,123.6,2.84142091]
[1766730138396,14.78,123.62,123.59,2.17142091]
[1766730138711,15.47,123.62,123.59,10.93250853]
[1766730138910,15.47,123.62,123.59,8.76108762]
[1766730139409,15.47,123.62,123.59,10.93250853]
[1766730140914,14.78,123.63,123.6,2.84142091]
[1766730141113,15.47,123.63,123.6,0.67]
[1766730141318,15.47,123.63,123.6,2.84142091]
[1766730141835,15.47,123.63,123.6,10.93190626]
[1766730142532,0.69,123.64,123.6,10.93190626]
[1766730142737,15.47,123.64,123.6,10.93190626]
[1766730145231,15.47,123.64,123.6,8.76048535]
[1766730145396,15.47,123.64,123.6,10.93190626]
[1766730147322,0.69,123.63,123.6,10.93190626]
[1766730150621,14.78,123.64,123.6,10.26190626]
[1766730150809,14.78,123.64,123.61,0.67]
[1766730151115,15.47,123.64,123.61,0.67]
[1766730151798,0.69,123.63,123.6,10.93190626]
[1766730155324,0.69,123.63,123.6,8.76048535]
[1766730155498,0.69,123.66,123.62,2.84142091]
[1766730155698,124.91269161,123.69,123.62,2.84142091]
[1766730155699,15.47,123.65,123.62,2.84142091]
[1766730156299,15.47,123.65,123.63,2.17142091]
[1766730158102,14.78,123.65,123.63,2.17142091]
[1766730158425,10.43767296,123.69,123.64,2.17142091]
[1766730158626,0.69,123.7,123.66,0.67]
[1766730158800,0.69,123.7,123.64,0.67]
[1766730159001,0.69,123.7,123.66,2.84142091]
[1766730159211,0.69,123.7,123.67,2.17142091]
[1766730163316,0.69,123.7,123.67,2.84142091]
[1766730166937,8.08276753,123.72,123.68,2.85142091]
[1766730167230,15.46,123.71,123.68,0.68]
[1766730167532,22.47751251,123.73,123.71,0.68]
[1766730167533,0.1,123.73,123.71,0.68]
[1766730167731,0.1,123.73,123.72,2.17142091]
[1766730168303,0.1,123.73,123.71,2.85142091]
[1766730171126,15.32,123.72,123.68,0.68]
[1766730171331,15.32,123.72,123.69,2.17142091]
[1766730172039,15.32,123.72,123.69,4.07042512]
[1766730172431,14.76,123.72,123.7,3.39042512]
[1766730174016,14.76,123.72,123.69,4.07042512]
[1766730174351,15.32,123.72,123.69,4.07042512]
[1766730176464,15.32,123.72,123.69,12.15510188]
[1766730176620,15.32,123.72,123.7,3.39042512]
[1766730179727,0.56,123.71,123.67,8.08579948]
[1766730180041,0.56,123.71,123.67,12.1562246]
[1766730180247,0.56,123.71,123.67,8.08579948]
[1766730180434,0.56,123.71,123.68,0.68]
[1766730180635,15.32,123.71,123.68,0.68]
[1766730182839,0.1,123.73,123.7,4.07042512]
[1766730183146,0.1,123.73,123.71,4.07042512]
[1766730183350,0.1,123.73,123.71,0.68]
[1766730184364,0.66,123.73,123.7,4.07042512]
[1766730185650,0.66,123.73,123.7,12.15449509]
[1766730186151,0.1,123.73,123.7,12.15449509]
[1766730188941,0.1,123.73,123.7,4.07042512]
[1766730189339,0.66,123.73,123.7,3.39042512]
[1766730189540,0.1,123.73,123.7,3.39042512]
[1766730189742,0.1,123.73,123.71,0.68]
[1766730190048,14.86,123.73,123.71,0.68]
[1766730190628,14.86,123.73,123.71,4.07042512]
[1766730190826,14.86,123.73,123.71,0.68]
[1766730191353,14.86,123.73,123.7,4.07042512]
[1766730191555,15.42,123.73,123.7,4.07042512]
[1766730191955,15.42,123.73,123.7,12.15436421]
[1766730192848,14.86,123.73,123.71,4.07042512]
[1766730193860,0.1,123.73,123.71,4.07042512]
[1766730195152,18.61800137,123.76,123.72,3.39042512]
[1766730195354,15.52,123.76,123.73,4.06042512]
[1766730195563,14.86,123.76,123.74,3.39042512]
[1766730195860,15.52,123.76,123.74,3.39042512]
[1766730196641,15.52,123.76,123.73,4.06042512]
[1766730197165,14.86,123.76,123.73,4.06042512]
[1766730199046,14.86,123.76,123.73,0.67]
[1766730199247,15.52,123.76,123.73,4.06042512]
[1766730201166,15.52,123.76,123.73,0.67]
[1766730201466,15.52,123.76,123.73,4.06042512]
[1766730204155,0.66,123.73,123.7,8.75406686]
[1766730204654,0.66,123.73,123.7,0.67]
[1766730208074,4.05042512,123.73,123.7,0.67]
[1766730211476,0.66,123.73,123.7,0.67]
[1766730211776,3.39042512,123.73,123.7,0.67]
[1766730212779,4.05042512,123.74,123.71,0.67]
[1766730216978,0.76,123.76,123.72,0.67]
[1766730217357,4.15042512,123.76,123.72,0.67]
[1766730219179,4.05042512,123.75,123.72,0.67]
[1766730219476,0.66,123.75,123.72,0.67]
[1766730219682,4.05042512,123.75,123.72,0.67]
[1766730220054,4.05042512,123.73,123.7,8.75385704]
[1766730220274,4.05042512,123.73,123.7,0.67]
[1766730220588,0.66,123.73,123.7,8.75400754]
[1766730222769,0.66,123.72,123.69,8.08452974]
[1766730223169,0.66,123.72,123.69,8.75452974]
[1766730224286,4.05042512,123.73,123.69,8.75452974]
[1766730225387,4.05042512,123.72,123.66,3.39042512]
[1766730225686,18.81042512,123.71,123.67,0.67]
[1766730226271,18.81042512,123.71,123.67,8.08574913]
[1766730226472,0.66,123.7,123.66,8.08647701]
[1766730226690,0.66,123.7,123.67,0.67]
[1766730226691,4.05042512,123.7,123.67,0.67]
[1766730226896,0.66,123.7,123.67,0.67]
[1766730227369,26.89390254,123.71,123.67,0.67]
[1766730227770,0.66,123.7,123.67,0.67]
[1766730233676,0.66,123.7,123.66,11.47690213]
[1766730233973,0.66,123.7,123.67,0.67]
[1766730237118,2.8308642,123.7,123.67,0.67]
[1766730241615,0.66,123.7,123.67,0.67]
[1766730241919,0.66,123.68,123.65,8.75727474]
[1766730242413,0.66,123.68,123.65,0.67]
[1766730243320,2.8308642,123.67,123.64,0.67]
[1766730244515,2.8308642,123.66,123.63,0.67]
[1766730245532,2.8308642,123.65,123.61,0.67]
[1766730245833,17.5908642,123.65,123.61,0.67]
[1766730246130,2.8308642,123.64,123.61,0.67]
[1766730246830,2.1708642,123.63,123.61,0.67]
[1766730247122,2.8308642,123.64,123.61,0.67]
[1766730248619,10.91894958,123.64,123.6,0.67]
[1766730248820,2.8308642,123.62,123.58,8.96168518]
[1766730248998,17.5908642,123.62,123.58,0.87]
[1766730249199,2.8308642,123.61,123.58,0.87]
[1766730249620,2.1708642,123.61,123.58,0.87]
[1766730252510,10.26085053,123.61,123.58,0.87]
[1766730253112,2.1708642,123.6,123.58,0.2]
[1766730253827,2.8308642,123.6,123.58,0.2]
[1766730254634,2.1708642,123.59,123.58,0.2]
[1766730256437,0.66,123.6,123.58,0.2]
[1766730256632,2.8308642,123.6,123.58,0.2]
[1766730259541,0.66,123.6,123.58,0.2]
[1766730259839,2.8308642,123.6,123.58,0.2]
[1766730261143,2.1708642,123.6,123.58,0.2]
[1766730262341,2.8308642,123.6,123.58,0.2]
[1766730265446,2.1708642,123.6,123.58,0.91]
[1766730272224,8.75017404,123.61,123.58,0.91]
[1766730272425,2.1708642,123.6,123.58,0.91]
[1766730278951,8.75017404,123.61,123.58,0.91]
[1766730279253,2.1708642,123.6,123.58,0.91]
[1766730283256,8.75017404,123.61,123.58,0.91]
[1766730283436,2.1708642,123.6,123.58,0.91]
[1766730283956,0.66,123.61,123.58,0.91]
[1766730284155,2.8308642,123.61,123.59,0.71]
[1766730284351,0.66,123.61,123.59,0.71]
[1766730284531,2.8308642,123.61,123.59,0.71]
[1766730284731,2.8308642,123.61,123.58,0.91]
[1766730290066,14.78,123.6,123.59,0.71]
[1766730290648,14.78,123.6,123.58,0.91]
[1766730291550,16.9508642,123.6,123.58,0.91]
[1766730291756,2.1708642,123.59,123.58,0.91]
[1766730293968,3.39824927,123.59,123.58,0.91]
[1766730295067,18.17824927,123.6,123.58,0.91]
[1766730297476,14.78,123.6,123.58,0.91]
[1766730297981,18.17824927,123.6,123.58,0.91]
[1766730300877,3.85824927,123.59,123.57,0.2]
[1766730301080,3.39824927,123.56,123.55,1e-08]
[1766730301259,3.39824927,123.56,123.52,0.2]
[1766730301260,34.0746604,123.56,123.52,0.2]
[1766730301581,5.45873817,123.55,123.51,0.91]
[1766730301761,3.39824927,123.53,123.51,0.91]
[1766730301965,18.17824927,123.53,123.51,0.91]
[1766730302884,3.39824927,123.52,123.51,0.91]
[1766730303059,3.39824927,123.52,123.51,0.2]
[1766730303860,3.39824927,123.52,123.51,0.91]
[1766730304985,3.39824927,123.52,123.51,0.2]
[1766730306155,18.17824927,123.53,123.51,0.91]
[1766730307553,14.78,123.53,123.51,0.2]
[1766730307758,14.78,123.53,123.52,0.71]
[1766730311486,14.78,123.53,123.51,0.91]
[1766730315491,18.17824927,123.53,123.51,0.91]
[1766730315889,3.39824927,123.52,123.51,0.91]
[1766730316288,26.27350719,123.53,123.51,0.91]
[1766730323803,18.17824927,123.53,123.51,0.91]
[1766730324103,18.07150473,123.53,123.51,0.91]
[1766730325399,14.67325546,123.53,123.51,0.91]
[1766730325600,18.07150473,123.53,123.51,0.91]
[1766730325993,18.07150473,123.53,123.51,0.86]
[1766730325994,14.67325546,123.53,123.51,0.86]
[1766730326702,14.67325546,123.53,123.52,0.66]
[1766730326895,3.65824927,123.58,123.54,0.66]
[1766730327084,11.75045365,123.58,123.54,0.66]
[1766730328001,3.39824927,123.57,123.54,0.66]
[1766730328885,8.35220438,123.58,123.54,0.66]
[1766730329089,3.39824927,123.57,123.54,0.66]
[1766730330305,11.75045365,123.58,123.54,0.66]
[1766730331607,10.43767296,123.6,123.54,0.66]
[1766730331809,18.78848351,123.6,123.55,0.66]
[1766730332114,3.39824927,123.59,123.56,0.66]
[1766730332290,3.65824927,123.59,123.56,0.66]
[1766730332610,3.39824927,123.58,123.56,0.66]
[1766730334309,3.65824927,123.58,123.54,0.66]